Cogmind - Beta 13 @@@ ROGUE MODE // 2024.07.28 @ 11:30:23 Player: syanka Result: Destroyed by D-53 Grenadier with Mini Grenade Launcher Performance ------------- Evolutions (0) 0 Regions Visited (4) 800 Robots Destroyed (46) 230 Value Destroyed (744) 744 Prototype IDs (0) 0 Alien Tech Used (0) 0 Bonus (0) 0 TOTAL SCORE: 1774 Bonus ------- None Cogmind --------- Core Integrity 0/250 Matter 300/300 Energy 226/250 System Corruption 0% Temperature Warm (120) Movement Treading (240) Ox1 Location -9/Mines Parts ------- > --- POWER (1) -------- Ion Engine > --- PROPULSION (2) --- Light Treads > --- UTILITY (2) ------ Large Storage Unit Seismic Detector > --- WEAPON (2) ------- Beam Cannon Beam Cannon > --- INVENTORY (15) --- Light Nuclear Core Wheel Wheel Cooling System Cooling System Large Storage Unit Huge Storage Unit Experimental Sensor Array Improved Terrain Scanner Targeting Computer Medium Laser Particle Gun Datajack Mining Laser Peak State ------------ > --- POWER ------------ Ion Engine > --- PROPULSION ------- Light Treads Light Treads > --- UTILITY ---------- Cooling System Large Storage Unit > --- WEAPON ----------- Beam Cannon Beam Cannon > --- INVENTORY -------- Ion Engine Light Nuclear Core Wheel Wheel Cooling System Large Storage Unit Huge Storage Unit Improved Terrain Scanner Seismic Detector Medium Laser Particle Gun Light Assault Rifle Grenade Launcher Datajack Mining Laser [Rating: 10] Favorites ----------- Power Ion Engine Engine Ion Engine Propulsion Light Treads Treads Light Treads Wheel Wheel Utility Large Storage Unit Device Seismic Detector Storage Large Storage Unit Weapon Beam Cannon Energy Gun Medium Laser Energy Cannon Beam Cannon Ballistic Gun Light Assault Rifle Launcher Grenade Launcher Build | -11 -10 -10 -10 -9 ------- Run | Yrd Mat Min Exi Min Slots Evolved . | . . . . . Power . | . . . . . Propulsion . | . . . . . Utility . | . . . . . Weapon . | . . . . . Parts Attached 45 | 9 23 11 . 2 Power 2 | 1 . 1 . . Engine 2 | 1 . 1 . . Core . | . . . . . Reactor . | . . . . . Propulsion 8 | 3 5 . . . Treads 5 | . 5 . . . Leg . | . . . . . Wheel 3 | 3 . . . . Hover . | . . . . . Flight . | . . . . . Utility 12 | 3 3 6 . . Device 10 | 2 2 6 . . Storage 2 | 1 1 . . . Processor . | . . . . . Hackware . | . . . . . Protection . | . . . . . Artifact . | . . . . . Weapon 23 | 2 15 4 . 2 Energy Gun 5 | 1 4 . . . Energy Cannon 9 | . 6 2 . 1 Ballistic Gun 2 | 1 1 . . . Ballistic Cannon . | . . . . . Launcher 7 | . 4 2 . 1 Special Weapon . | . . . . . Impact Weapon . | . . . . . Slashing Weapon . | . . . . . Piercing Weapon . | . . . . . Special Melee Weapon . | . . . . . Unidentified Prototypes . | . . . . . Parts Lost 2 | . . . . 2 Power . | . . . . . Propulsion 1 | . . . . 1 Utility . | . . . . . Weapon 1 | . . . . 1 Highest Loss Streak 1 | . . . . 1 To Critical Strikes . | . . . . . Average Slot Usage (%) 100 | . 100 100 100 100 Engine 14 | . 14 14 14 14 Treads 27 | . 27 28 28 28 Device 14 | . 14 14 14 14 Storage 14 | . 14 14 14 14 Energy Gun 2 | . 5 . . . Energy Cannon 22 | . 18 27 28 28 Ballistic Gun 2 | . 4 . . . Naked Turns . | . . . . . Heaviest Build 33 | 14 32 33 32 32 Greatest Support 40 | 26 40 40 40 40 Greatest Overweight (x) . | . . . . . Average Overweight (x) . | . . . . . Largest Inventory Capacity 15 | 8 15 15 15 15 Average Capacity 14 | 7 14 15 15 15 Most Carried 15 | 8 15 15 15 15 Average Carried 13 | 5 13 14 15 14 Final Capacity 15 | 8 15 15 15 15 Final Carried 15 | 8 15 15 15 14 Class Distribution -------------------- 100% | Mutant Dominant Class ---------------- Mutant | -10/Materials Mutant | -10/Mines Mutant | -10/Exiles Mutant | -9/Mines Resources | -11 -10 -10 -10 -9 ----------- Run | Yrd Mat Min Exi Min Matter Collected 860 | 310 364 162 . 24 Remotely . | . . . . . Salvage Created 1171 | 217 660 270 . 24 Parts 86 | 26 35 22 . 3 Haulers Intercepted 2 | . 2 . . . Recyclers Shooed 2 | 1 1 . . . Parts Field Recycled . | . . . . . Retrieved Matter . | . . . . . Parts Self-Destructed . | . . . . . Prevented . | . . . . . Kills | -11 -10 -10 -10 -9 ------- Run | Yrd Mat Min Exi Min Combat Hostiles Destroyed 23 | . 9 11 . 3 Guns 4 | . 4 . . . Cannons 9 | . 2 6 . 1 AOE 10 | . 3 5 . 2 Classes Destroyed 10 | 3 6 1 . . Worker 4 | 2 2 . . . Builder 1 | . 1 . . . Tunneler 8 | 5 1 2 . . Hauler 2 | . 2 . . . Recycler 3 | 1 2 . . . Mechanic 1 | . . 1 . . Operator 1 | . 1 . . . Watcher 3 | . 3 . . . Swarmer 11 | . 3 5 . 3 Grunt 12 | . 6 6 . . Best Kill Streak 6 | 6 4 5 . 3 Combat Bots Only 4 | . 3 4 . 3 Max Kills in Single Turn 2 | 1 2 2 . 2 Gunslinging . | . . . . . Exploded 2 | . 2 2 . 2 Melee . | . . . . . Uniques/NPCs Destroyed . | . . . . . Combat | -11 -10 -10 -10 -9 -------- Run | Yrd Mat Min Exi Min Hostile Shots Fired 89 | . 46 28 . 15 Missed 21 | . 13 5 . 3 Damage Taken 1113 | . 470 258 . 385 Core 265 | . 86 40 . 139 Absorbed by Shields . | . . . . . Core Remaining (%) 100 | 100 . . . . Volleys Fired 118 | 20 76 17 . 5 Largest 2 | 2 2 2 . 2 Hottest 120 | 70 120 120 . 120 Shots Fired 216 | 40 140 28 . 8 Gun 111 | 40 71 . . . Cannon 87 | . 58 22 . 7 Launcher 18 | . 11 6 . 1 Special . | . . . . . Kinetic 54 | 20 34 . . . Thermal 144 | 20 95 22 . 7 Explosive 18 | . 11 6 . 1 Electromagnetic . | . . . . . Robot Hit Streak 16 | 16 9 10 . 12 Robot Miss Streak 4 | 2 4 4 . 1 Penetration Max . | . . . . . Secondary Targets . | . . . . . Shots Hit Robots 124 | 28 70 19 . 7 Core Hits 67 | 14 30 19 . 4 Critical Kills . | . . . . . Critical Parts Destroyed . | . . . . . Critical Strikes 1 | 1 . . . . Burn 1 | 1 . . . . Melee Attacks . | . . . . . Impact . | . . . . . Slashing . | . . . . . Piercing . | . . . . . Sneak Attacks . | . . . . . Combat Hostiles . | . . . . . Follow-up Attacks . | . . . . . Damage Inflicted 2447 | 305 1186 711 . 245 Guns 837 | 305 532 . . . Cannons 783 | . 386 273 . 124 Explosions 795 | . 252 422 . 121 Melee . | . . . . . Ramming 32 | . 16 16 . . Kinetic 320 | 119 201 . . . Thermal 1300 | 186 717 273 . 124 Explosive 795 | . 252 422 . 121 Electromagnetic . | . . . . . Impact . | . . . . . Slashing . | . . . . . Piercing . | . . . . . Highest Corruption . | . . . . . Average Corruption . | . . . . . Corruption Purged . | . . . . . Corruption Blocked . | . . . . . Overload Shots . | . . . . . Overflow Damage 42 | . 10 11 . 21 Projectiles 5 | . 5 . . . Explosions 37 | . 5 11 . 21 Melee . | . . . . . Knockbacks . | . . . . . Impact . | . . . . . Kinetic . | . . . . . Secondary . | . . . . . Self-Inflicted Damage 59 | . 6 16 . 37 Shots 4 | . 1 2 . 1 Rammed 9 | . 5 4 . . Targets Rammed 10 | . 5 5 . . Kicked . | . . . . . Crushed 1 | . . 1 . . Highest Temperature 304 | 230 304 180 . 120 Average Temperature 85 | 94 85 70 . 56 Received Heat Transfer 339 | . 258 81 . . Effects 2 | . 2 . . . Interference 2 | . 2 . . . Siege Activations . | . . . . . Robots Corrupted . | . . . . . Combat Hostiles . | . . . . . Parts Fried . | . . . . . Impact Corruptions . | . . . . . Robots Melted . | . . . . . Combat Hostiles . | . . . . . Parts Melted 7 | 3 3 1 . . Heat Transferred 3145 | 629 1702 555 . 259 Parts Sabotaged . | . . . . . Parts Stolen . | . . . . . Parts Stripped . | . . . . . Power Chain Reactions . | . . . . . Alert | -11 -10 -10 -10 -9 ------- Run | Yrd Mat Min Exi Min Peak Influence 283 | 40 283 201 . 66 Initial 30 | . 26 30 . . Average 109 | 16 140 70 . 51 Maximum Alert Level 1 | . 1 1 . . Low Security (%) 79 | 100 69 94 . 100 Level 1 20 | . 30 5 . . Level 2 . | . . . . . Level 3 . | . . . . . Level 4 . | . . . . . Level 5 . | . . . . . High Security . | . . . . . Max Security . | . . . . . Squads Dispatched 2 | . 1 1 . . Investigation . | . . . . . Extermination . | . . . . . Reinforcement 1 | . 1 . . . Assault 1 | . . 1 . . Garrison . | . . . . . Intercept . | . . . . . Searches Triggered . | . . . . . Construction Impeded . | . . . . . Haulers Reinforced . | . . . . . Active Scanning Responses . | . . . . . Cargo Convoy Interrupts . | . . . . . Stealth | -11 -10 -10 -10 -9 --------- Run | Yrd Mat Min Exi Min Distress Signals 1 | . . 1 . . Communications Jammed . | . . . . . Distress Signals . | . . . . . Times Spotted 41 | . 22 12 . 7 Peak Tracking Total 5 | . 3 4 . 5 Tactical Retreats 2 | . 1 1 . . Traps | -11 -10 -10 -10 -9 ------- Run | Yrd Mat Min Exi Min Traps Triggered 1 | . 1 . . . Indirectly . | . . . . . Trap Hack Attempts . | . . . . . Triggered . | . . . . . Disarmed . | . . . . . Reprogrammed . | . . . . . Reused . | . . . . . Traps Extracted . | . . . . . Installed . | . . . . . Triggered . | . . . . . Machines | -11 -10 -10 -10 -9 ---------- Run | Yrd Mat Min Exi Min Machines Disabled 1 | . . 1 . . Max in Single Turn 1 | . . 1 . . Machines Repaired . | . . . . . Machines Dismantled . | . . . . . Machines Sabotaged . | . . . . . Overloaded Fab Kills . | . . . . . Hacking | -11 -10 -10 -10 -9 --------- Run | Yrd Mat Min Exi Min Machines Accessed 5 | . 4 . 1 . Terminals 4 | . 4 . . . Fabricators . | . . . . . Repair Stations . | . . . . . Recycling Units . | . . . . . Scanalyzers . | . . . . . Garrison Access . | . . . . . Total Hacks 10 | . 9 . 1 . Successful 3 | . 2 . 1 . Failed 7 | . 7 . . . Catastrophic 2 | . 2 . . . Database Lockouts . | . . . . . Manual 6 | . 6 . . . Terminals 9 | . 9 . . . Fabricators . | . . . . . Repair Stations . | . . . . . Recycling Units . | . . . . . Scanalyzers . | . . . . . Garrison Access . | . . . . . Terminal Hacks 3 | . 2 . 1 . Record 1 | . . . 1 . Robot Analysis 2 | . 2 . . . Fabricator Hacks . | . . . . . Repair Station Hacks . | . . . . . Recycling Unit Hacks . | . . . . . Scanalyzer . | . . . . . Garrison Access Hacks . | . . . . . Unauthorized Hacks . | . . . . . Terminals . | . . . . . Fabricators . | . . . . . Repair Stations . | . . . . . Recycling Units . | . . . . . Scanalyzers . | . . . . . Garrison Access . | . . . . . Data Cores Recovered . | . . . . . Used . | . . . . . Hacking Detections 4 | . 4 . . . Full Trace Events . | . . . . . Feedback Events . | . . . . . Feedback Blocked . | . . . . . Robot Schematics Acquired . | . . . . . Robots Built . | . . . . . Authchips . | . . . . . Time . | . . . . . Total Robot Build Rating . | . . . . . Part Schematics Acquired . | . . . . . Parts Built . | . . . . . Authchips . | . . . . . Time . | . . . . . Total Part Build Rating . | . . . . . Parts Repaired . | . . . . . Time . | . . . . . Parts Recycled . | . . . . . Recycled Matter . | . . . . . Retrieved Matter . | . . . . . Retrieved Components . | . . . . . Parts Scanalyzed . | . . . . . Part Schematics Acquired . | . . . . . Parts Damaged . | . . . . . Bothacking | -11 -10 -10 -10 -9 ------------ Run | Yrd Mat Min Exi Min Used RIF Installer . | . . . . . Robots Hacked . | . . . . . Non-combat . | . . . . . Combat . | . . . . . Robot Hacks Applied . | . . . . . Relay Couplers Released . | . . . . . Fabnet Peak Effective % . | . . . . . Robots Rewired . | . . . . . Allies Hacked . | . . . . . Hacks Repelled . | . . . . . Allies | -11 -10 -10 -10 -9 -------- Run | Yrd Mat Min Exi Min Total Allies 3 | . . 3 . . Largest Group 3 | . . 3 . . Highest-Rated Group 80 | . . 80 . . Highest-Rated Ally 31 | . . 31 . . Total Orders . | . . . . . Ally Attacks 9 | . . 9 . . Total Damage 163 | . . 163 . . Kills . | . . . . . Allies Corrupted . | . . . . . Allies Melted . | . . . . . Intel | -11 -10 -10 -10 -9 ------- Run | Yrd Mat Min Exi Min Robot Analysis Total 2 | . 2 . . . Derelict Logs Recovered 1 | . . 1 . . Drone Launches . | . . . . . Drone Recoveries . | . . . . . Exploration | -11 -10 -10 -10 -9 ------------- Run | Yrd Mat Min Exi Min Turns Passed 2886 | 152 1600 858 223 53 Spaces Moved 1496 | 85 801 445 140 25 Core 2 | 2 . . . . Treads 1383 | . 773 445 140 25 Legs . | . . . . . Wheels 111 | 83 28 . . . Hover . | . . . . . Flight . | . . . . . Fastest Speed 50 | 50 80 160 160 160 Average Speed 154 | 84 157 160 160 160 Slowest Speed 160 | 90 160 160 160 160 Overloaded Moves . | . . . . . Propulsion Burnouts . | . . . . . Robots Hopped . | . . . . . Cave-ins Triggered . | . . . . . Exploration Rate (%) 46 | 5 88 80 50 7 Regions Visited 4 Branch Regions 3 Pre-discovered Areas 3 | . . 1 1 1 Known Exits Taken . | . . . . . Unknown Exits Taken 4 | 1 1 1 1 . Scrap Searched 2 | . . 2 . . Spaces Dug 13 | . 13 . . . Terrain Destroyed 115 | . 74 35 . 6 Melee . | . . . . . Projectile . | . . . . . AOE 115 | . 74 35 . 6 Terrain Rammed . | . . . . . Walls Destroyed . | . . . . . Machines Disabled . | . . . . . Actions | -11 -10 -10 -10 -9 --------- Run | Yrd Mat Min Exi Min Total 1860 | 126 1004 559 139 32 Wait 151 | . 77 74 . . Move 1492 | 84 800 444 139 25 Hop . | . . . . . Pick Up 25 | 9 12 4 . . Fast Attach 8 | 8 . . . . Attach 2 | . 1 . . 1 Detach 2 | 1 1 . . . Swap 35 | 1 22 11 . 1 Drop 17 | 3 10 4 . . Fire 118 | 20 76 17 . 5 Melee . | . . . . . Ram . | . . . . . Kick . | . . . . . Crush 10 | . 5 5 . . Escape Stasis . | . . . . . Rewire . | . . . . . Trap . | . . . . . Miscellaneous . | . . . . . Route ------- -11/Scrapyard -10/Materials (discovered 5 exits: [*Mat x3] / [*Min x2]) -10/Mines (discovered 3 exits: [*Mat x2] / *Exi) -10/Exiles -9/Mines History --------- Turn | Location | Event 20 | -11/Scrapyard | Discovered new exit (range 16) 153 | -11/Scrapyard | Entered Materials 316 | -10/Materials | Build established: Mutant 381 | -10/Materials | Discovered new exit (range 7) 620 | -10/Materials | Discovered new exit (range 13) 763 | -10/Materials | Discovered new exit (range 16) 1161 | -10/Materials | Discovered new exit (range 10) 1481 | -10/Materials | Discovered new exit (range 16) 1753 | -10/Materials | Entered Mines 1913 | -10/Mines | Learned location of Mines (-9) 1915 | -10/Mines | Discovered new exit (range 7) 1932 | -10/Mines | Met a Derelict testing a Signal Generator 2035 | -10/Mines | Lost 3 allies 2105 | -10/Mines | Found a damaged Exp. Sensor Array with a note attached 2112 | -10/Mines | Found Prototype Device 2457 | -10/Mines | Core integrity fell below 50% 2519 | -10/Mines | Discovered new exit (range 7) 2603 | -10/Mines | Deemed a non-threat by the Exiles lab entrance 2605 | -10/Mines | Discovered new exit (range 5) 2611 | -10/Mines | Entered Exiles 2650 | -10/Exiles | Met 8R-AWN 2679 | -10/Exiles | Met EX-HEX 2749 | -10/Exiles | Met EX-DEC 2759 | -10/Exiles | Learned location of Zion (-6) 2815 | -10/Exiles | Discovered new exit (range 12) 2834 | -10/Exiles | Entered Mines 2835 | -9/Mines | Learned location of Storage (-8) 2861 | -9/Mines | Assembled infested the area 2882 | -9/Mines | Core integrity fell below 20% 2887 | -9/Mines | Destroyed by D-53 Grenadier with Mini Grenade Launcher Last Messages --------------- 02844_ Destroyed Grenade Launcher. 02844_ S-10 Pest destroyed. 02851_ Acquired 6 matter. 02852_ Acquired 8 matter. 02854_ Acquired 10 matter. 02861_ ALERT: Infestation in the mines, dispatching Demolisher response squad. 02871_ U-05 Engineer lays Concrete. 02877_ C-30 ARC bursts open, deploying its payload. 02877_ D-53 Grenadier unfolds itself. 02877_ R-06 Scavenger destroyed. 02877_ U-05 Engineer lays Concrete. 02877_ R-06 Scavenger collects Lgt. Assault Rifle. 02879_ U-05 Engineer lays Concrete. 02879_ U-05 Engineer destroyed. 02879_ R-06 Scavenger destroyed. 02881_ U-05 Engineer destroyed. 02881_ Lgt. Treads destroyed. 02885_ as-38250 destroyed. 02886_ The unstable cave ceiling collapses. Map ----- +----------------------------------------------------+ | ?????????????????????????????????????????????????? | | ?????????????????????????????????????????????????? | | ?????????????????????????????????????????????????? | | ?????????????????????????????????????????????????? | | ?????????????????????????????????????????????????? | | ?????????????????????????????????????????????????? | | ?????????????????????????????????????????????????? | | ?????????????????????????????????????????????????? | | ?????????????????????????????????????????????????? | | ?????????????????????????????????????????????????? | | ?????????????????????????????????????????????????? | | ?????????????????????????????????????????????????? | | ?????????????????????????????????????????????????? | | ?????????????????????????????????????????????????? | | ????????????????????####?????????????????????????? | | ???????????????????## ##????????????????????????? | | ??????????????????## #????????????????????????? | | ?????????????????## #????????????????????????? | | ?????????????????# ##????????????????????????? | | ?????????????????# ##?????????????????????????? | | ?????????????????# #######????????????????????? | | ???????????????#### ##???????????????????? | | ??????????????## ##??????????????????? | | ?????????????## !% # #??????????????????? | | ?# ####|a= % ## ????????? | | ?# !! @d #?????????????? | | ##### d ## #?????????????? | | ??# ???????## # # #????#?????????????? | | ????????????????????## ##??????????????????? | | ?????????????????????## ##???????????????????? | | ??????????????????????#######????????????????????? | | ?????????????????????????????????????????????????? | | ?????????????????????????????????????????????????? | | ?????????????????????????????????????????????????? | | ?????????????????????????????????????????????????? | | ?????????????????????????????????????????????????? | | ?????????????????????????????????????????????????? | | ?????????????????????????????????????????????????? | | ?????????????????????????????????????????????????? | | ?????????????????????????????????????????????????? | | ?????????????????????????????????????????????????? | | ?????????????????????????????????????????????????? | | ?????????????????????????????????????????????????? | | ?????????????????????????????????????????????????? | | ?????????????????????????????????????????????????? | | ?????????????????????????????????????????????????? | | ?????????????????????????????????????????????????? | | | | | | | +----------------------------------------------------+ Best States ------------- Heat Dissipation 47 Energy Generation 10 Energy Capacity 250 Matter Stores 300 Matter Capacity 300 Sight Range 16 Terrain Scan Range 16 Terrain Scan Density 10 Evasion (%) 44 Recoil Reduction 2 Item Schematics ----------------- None Robot Schematics ------------------ None Fabricated ------------ Nothing Alien Tech Used ----------------- None Achievements -------------- None Challenges ------------ None Game ------ Seed StormReflectiveStick Manual? 0 Play Time 00:16:39 Cumulative 59.8 hours Start 2024.07.28 @ 11:14:13 End 2024.07.28 @ 11:30:23 Sessions 1 Manual Loads 0 Difficulty Rogue Special Mode None Game No. 43 Rogue 30 Adventurer 13 Explorer 0 Win Type - Total 0 Types 0/0/0/0/0/0/0/0/0 Lore% 26 Gallery% 41 Achievement% 35 Wizard Run 0 Options --------- Layout 2 ASCII 0 Keyboard 1 Movement Numpad Keybinds 0 Fullscreen 2 Font 16/Swanston Map View 55x47 Zoom Use 0% Tactical HUD 1 Map Filters NONE Filters NONE Steam 0 RUN: 9a8dc743-c7d8-40c3-86c4-a0ac9bdc38f8